bitfinex/quotes_BTCUSD_20260103
["timestamp","ask_amount","ask_price","bid_price","bid_amount"]
[1767464161971,0.05555286,90005.0,89999.0,0.000955]
[1767464162263,0.01111049,90005.0,90001.0,0.0531626]
[1767464162463,0.01046248,90006.0,90003.0,0.01111074]
[1767464162600,0.01118191,90008.0,90005.0,0.05555246]
[1767464162601,7.179e-05,90008.0,90005.0,0.05555246]
[1767464162806,7.179e-05,90008.0,90006.0,0.05555144]
[1767464162984,7.9e-07,90008.0,90006.0,0.05555144]
[1767464163545,0.03331009,90010.0,90007.0,0.01111024]
[1767464163902,0.03322233,90010.0,90007.0,0.01111024]
[1767464164527,0.02211246,90010.0,90007.0,0.01111024]
[1767464164743,0.02211246,90010.0,90008.0,0.05555061]
[1767464164948,0.02211246,90010.0,90007.0,0.01111024]
[1767464165976,0.000115,90007.0,90005.0,0.01111049]
[1767464166330,0.000115,90007.0,90006.0,0.05555185]
[1767464166545,0.03322233,90010.0,90006.0,0.01111037]
[1767464166772,0.03322233,90010.0,90006.0,0.06666204]
[1767464167171,0.02211246,90010.0,90007.0,0.01111024]
[1767464167323,0.000115,90007.0,90005.0,0.01111049]
[1767464167769,0.01111,90009.0,90005.0,0.01111049]
[1767464167970,0.01111012,90008.0,90005.0,0.01111049]
[1767464168124,0.01111,90009.0,90005.0,0.01111049]
[1767464168520,0.01111,90009.0,90005.0,0.01099549]
[1767464169857,0.01111,90009.0,90006.0,0.01111037]
[1767464171646,0.02211246,90010.0,90009.0,0.000999]
[1767464171858,0.02211246,90010.0,90007.0,0.01111024]
[1767464172270,0.03322233,90010.0,90007.0,0.01111024]
[1767464173434,0.02211246,90010.0,90007.0,0.01111024]
[1767464173680,0.02211246,90010.0,90007.0,0.0666611]
[1767464173836,0.02111346,90010.0,90007.0,0.0666611]
[1767464175946,0.03222333,90010.0,90007.0,0.01111024]
[1767464177655,0.02111346,90010.0,90007.0,0.06666145]
[1767464178961,0.02111346,90010.0,90007.0,0.01111024]
[1767464179357,0.0888982,90012.0,90006.0,0.06666171]
[1767464179566,0.01110975,90011.0,90008.0,0.01111012]
[1767464179948,0.01110987,90010.0,90007.0,0.01111024]
[1767464180169,0.06665974,90010.0,90006.0,0.01111037]
[1767464180374,0.01111,90009.0,90006.0,0.01111037]
[1767464180922,0.01110987,90010.0,90006.0,0.01111037]
[1767464181143,0.01102211,90010.0,90006.0,0.01111037]
[1767464181793,0.01102211,90010.0,90006.0,0.06666185]
[1767464187111,0.01102211,90010.0,90004.0,0.05420988]
[1767464187363,0.01102211,90010.0,90006.0,0.05555148]
[1767464187544,0.01102211,90010.0,90007.0,0.01111024]
[1767464189666,0.01110975,90011.0,90007.0,0.06666104]
[1767464192418,0.01110975,90011.0,90006.0,0.06666185]
[1767464192967,0.01110975,90011.0,90007.0,0.01111024]
[1767464193167,0.01110987,90010.0,90007.0,0.01111024]
[1767464193978,0.01110975,90011.0,90007.0,0.01111024]
[1767464195496,0.01110975,90011.0,90008.0,0.01111012]
[1767464196310,0.01110975,90011.0,90007.0,0.06666095]
[1767464196311,0.01110975,90011.0,90007.0,0.02777107]
[1767464196921,0.01110975,90011.0,90008.0,0.01111012]
[1767464197821,0.08889786,90012.0,90008.0,0.01111012]
[1767464198071,0.01040862,90011.0,90008.0,0.01111012]
[1767464198281,0.03334962,90012.0,90009.0,0.01111]
[1767464198479,0.02151849,90011.0,90007.0,0.01111024]
[1767464198623,0.01110975,90011.0,90007.0,0.01111024]
[1767464199055,0.01102197,90011.0,90007.0,0.01111024]
[1767464199632,0.01110975,90011.0,90008.0,0.01111012]
[1767464201243,0.01110975,90011.0,90007.0,0.01111024]
[1767464201439,0.01040838,90010.0,90007.0,0.01111024]
[1767464201648,0.01110975,90011.0,90007.0,0.01111024]
[1767464201849,0.01040833,90010.0,90007.0,0.01111024]
[1767464202055,0.01110975,90011.0,90007.0,0.01111024]
[1767464202256,0.02151819,90010.0,90007.0,0.01111024]
[1767464202464,0.01110987,90010.0,90007.0,0.01111024]
[1767464203106,0.01111,90009.0,90006.0,0.01111037]
[1767464203340,0.000999,90007.0,90006.0,0.01111037]
[1767464203638,0.01111,90009.0,90006.0,0.01111037]
[1767464204280,0.01110987,90010.0,90006.0,0.01111037]
[1767464205172,5.731e-05,90009.0,90005.0,0.06666259]
[1767464205414,5.731e-05,90009.0,90006.0,0.05555131]
[1767464205935,5.731e-05,90009.0,90006.0,0.01111037]
[1767464208190,5.731e-05,90009.0,90006.0,0.06666187]
[1767464216461,0.01110975,90011.0,90006.0,0.06666187]
[1767464216626,0.01040573,90010.0,90007.0,0.01111024]
[1767464216829,0.01110975,90011.0,90007.0,0.01111024]
[1767464217027,0.01040574,90010.0,90007.0,0.01111024]
[1767464217331,0.01110987,90010.0,90007.0,0.01111024]
[1767464217591,0.01110975,90011.0,90007.0,0.01111024]
[1767464217798,0.01040566,90010.0,90007.0,0.01111024]
[1767464217991,8.758e-05,90010.0,90006.0,0.06666187]
[1767464219067,8.758e-05,90010.0,90007.0,0.01111024]
[1767464221614,5.8e-07,90010.0,90008.0,0.05555061]
[1767464222009,0.0002,90013.0,90012.0,0.00554489]
[1767464222210,0.00620043,90013.0,90012.0,0.00554489]
[1767464222368,0.05554523,90017.0,90012.0,0.00554489]
[1767464222369,0.01110888,90018.0,90015.0,0.00947132]
[1767464222574,0.01110839,90022.0,90017.0,0.04674203]
[1767464222770,0.06669481,90022.0,90017.0,0.04674203]
[1767464222970,0.06669481,90022.0,90017.0,0.04574403]
[1767464223169,0.02224,90021.0,90017.0,0.05685304]
[1767464223372,0.03334851,90021.0,90019.0,0.04674203]
[1767464223621,0.08889163,90021.0,90019.0,0.04674203]
[1767464224172,0.02224,90021.0,90019.0,0.04674203]
[1767464224380,0.021241,90021.0,90019.0,0.04674203]
[1767464225405,0.01569611,90021.0,90020.0,0.04674203]
[1767464225913,0.0156083,90021.0,90020.0,0.04674203]
[1767464227364,0.0156083,90021.0,90020.0,0.03574303]
[1767464227570,0.0822594,90021.0,90018.0,0.04674203]
[1767464228181,0.02671681,90021.0,90018.0,0.04674203]
[1767464229405,0.0156083,90021.0,90018.0,0.11339529]
[1767464229634,0.0156083,90021.0,90018.0,0.05785091]
[1767464230267,0.02671681,90021.0,90018.0,0.04674203]
[1767464231443,0.0156083,90021.0,90018.0,0.05785091]
[1767464231751,0.0156083,90021.0,90019.0,0.05554382]
[1767464231957,0.0156083,90021.0,90018.0,0.05785091]
[1767464233056,0.02671681,90021.0,90018.0,0.04674203]
[1767464233254,0.0156083,90021.0,90018.0,0.05785091]
[1767464234062,0.0156083,90021.0,90018.0,0.01110888]
[1767464238362,0.02671681,90021.0,90018.0,0.01110888]
[1767464239983,0.0156083,90021.0,90018.0,0.01110888]
[1767464241596,0.0156083,90021.0,90018.0,0.06665295]
[1767464242739,0.0156083,90021.0,90018.0,0.01110888]
[1767464242947,0.02671681,90021.0,90018.0,0.01110888]
[1767464244457,0.0156083,90021.0,90018.0,0.06665294]
[1767464244662,0.0156083,90021.0,90018.0,0.01110888]
[1767464244916,0.02671681,90021.0,90018.0,0.01110888]
[1767464245085,0.02662899,90021.0,90018.0,0.01110888]
[1767464247220,0.02662899,90021.0,90017.0,0.06665404]
[1767464247774,0.02662899,90021.0,90018.0,0.01110888]
[1767464248222,0.08217163,90021.0,90018.0,0.01110888]
[1767464249026,0.01110864,90020.0,90017.0,0.01110901]
[1767464249206,0.08217163,90021.0,90017.0,0.01110901]
[1767464249207,0.02662899,90021.0,90017.0,0.01110901]
[1767464250668,0.01552048,90021.0,90018.0,0.01110888]
[1767464251149,0.01552048,90021.0,90018.0,0.06665295]
[1767464252066,0.01452148,90021.0,90019.0,0.05554343]
[1767464253339,0.01443365,90021.0,90019.0,0.05554343]
[1767464254062,0.0222,90024.0,90021.0,0.0666511]
[1767464254864,0.02021316,90024.0,90021.0,0.0666511]
[1767464255066,0.02021316,90024.0,90021.0,0.01110851]
[1767464256048,0.0111074,90030.0,90026.0,0.06664735]
[1767464256254,0.000999,90026.0,90024.0,0.00995615]
[1767464256451,0.05553988,90026.0,90024.0,0.00995615]
[1767464256685,0.05554136,90023.0,90018.0,0.05732144]
[1767464256886,0.01110814,90024.0,90018.0,0.01288588]
[1767464257085,0.06664936,90024.0,90018.0,0.0684298]
[1767464257363,0.01110839,90022.0,90019.0,0.01110876]
[1767464257564,0.01110839,90022.0,90019.0,0.01010976]
[1767464257780,0.01110839,90022.0,90018.0,0.01288588]
[1767464259466,0.01103939,90022.0,90018.0,0.01288588]
[1767464260662,0.06665009,90023.0,90018.0,0.01288588]
[1767464260663,0.01110827,90023.0,90018.0,0.01288588]
[1767464260865,0.01110827,90023.0,90022.0,0.000999]
[1767464261113,0.01110827,90023.0,90019.0,0.01110876]
[1767464261934,0.01110827,90023.0,90020.0,0.01096428]
[1767464262104,0.01110827,90023.0,90019.0,0.01110876]
[1767464262400,0.01110851,90021.0,90018.0,0.001777]
[1767464262620,0.01110851,90021.0,90018.0,0.01288588]
[1767464262993,0.06665036,90022.0,90018.0,0.01288588]
[1767464263417,0.0666517,90021.0,90018.0,0.001777]
[1767464264097,0.05554382,90019.0,90018.0,0.001777]
[1767464264437,0.0666517,90021.0,90018.0,0.001777]
[1767464265006,0.06665111,90021.0,90018.0,0.001777]
[1767464265808,0.01110851,90021.0,90018.0,0.001777]
[1767464266012,0.01010951,90021.0,90018.0,0.01288588]
[1767464266828,0.06665077,90022.0,90018.0,0.01288588]
[1767464266829,0.01110839,90022.0,90018.0,0.01288588]
[1767464267037,0.01110839,90022.0,90019.0,0.01110876]
[1767464267241,0.01110839,90022.0,90018.0,0.01288588]
[1767464267442,0.01110851,90021.0,90018.0,0.01288588]
[1767464268449,0.01110839,90022.0,90021.0,0.01]
[1767464268645,0.01110839,90022.0,90021.0,0.009001]
[1767464268866,0.01110839,90022.0,90019.0,0.01110876]
[1767464269247,0.01110814,90024.0,90020.0,0.06665185]
[1767464269447,0.01110814,90024.0,90020.0,0.01110864]
[1767464269691,0.01110827,90023.0,90019.0,0.01110876]
[1767464270714,0.01110839,90022.0,90019.0,0.01110876]
[1767464271079,0.01110827,90023.0,90019.0,0.06665215]
[1767464272081,0.01010927,90023.0,90019.0,0.06665215]
[1767464272693,0.01010927,90023.0,90020.0,0.01110864]
[1767464273283,0.01110814,90024.0,90020.0,0.06665127]
[1767464274185,0.01110814,90024.0,90020.0,0.01110864]
[1767464274955,0.01110827,90023.0,90020.0,0.01110864]
[1767464275257,0.01110827,90023.0,90019.0,0.06665215]
[1767464276041,0.01110839,90022.0,90019.0,0.01110876]
[1767464276623,0.01110827,90023.0,90019.0,0.0109644]
[1767464277753,0.01110839,90022.0,90019.0,0.0109644]
[1767464278121,0.06665097,90022.0,90018.0,0.01288588]
[1767464278329,0.06665097,90022.0,90018.0,0.001777]
[1767464278330,0.01110851,90021.0,90018.0,0.001777]
[1767464278443,0.01110839,90022.0,90018.0,0.01188688]
[1767464279084,0.0666511,90021.0,90018.0,0.000778]
[1767464279309,0.01110839,90022.0,90019.0,0.01110876]
[1767464279668,0.01110827,90023.0,90019.0,0.01110876]
[1767464280810,0.01110827,90023.0,90020.0,0.01110864]
[1767464281359,0.01110827,90023.0,90020.0,0.06665185]
[1767464281555,0.0111079,90026.0,90021.0,0.0666507]
[1767464281828,0.0111079,90026.0,90023.0,0.01]
[1767464282006,0.0111079,90026.0,90023.0,0.009001]
[1767464283489,0.0111079,90026.0,90023.0,0.02010927]
[1767464283974,0.0111079,90026.0,90023.0,0.01110827]
[1767464285510,0.0111079,90026.0,90022.0,0.01110839]
[1767464285715,0.01110802,90025.0,90022.0,0.01110839]
[1767464285921,0.01110802,90025.0,90021.0,0.06665101]
[1767464286883,0.01110814,90024.0,90021.0,0.01110851]
[1767464292320,0.01110814,90024.0,90020.0,0.05554282]
[1767464292896,0.01110814,90024.0,90021.0,0.01110851]
[1767464295803,0.01110802,90025.0,90021.0,0.06665077]
[1767464296006,0.01110802,90025.0,90022.0,0.01110839]
[1767464296239,0.01010902,90025.0,90022.0,0.01110839]
[1767464298562,0.06664784,90026.0,90022.0,0.01110839]
[1767464298742,0.01040941,90025.0,90022.0,0.01110839]
[1767464298966,0.06664784,90026.0,90022.0,0.01110839]
[1767464299104,0.01040943,90025.0,90022.0,0.01110839]
[1767464299306,0.06664784,90026.0,90022.0,0.01110839]
[1767464299509,0.01040968,90025.0,90022.0,0.01110839]
[1767464299825,0.06664784,90026.0,90022.0,0.01110839]
[1767464300025,0.01040968,90025.0,90022.0,0.01110839]
[1767464300246,0.06664784,90026.0,90022.0,0.01110839]
[1767464300441,0.01040972,90025.0,90022.0,0.01110839]
[1767464300641,0.06664784,90026.0,90022.0,0.01110839]
[1767464300863,0.01040972,90025.0,90022.0,0.01110839]
[1767464301160,0.06664784,90026.0,90022.0,0.01110839]
[1767464301466,0.01040979,90025.0,90022.0,0.01110839]
[1767464301661,0.01110802,90025.0,90022.0,0.01010939]
[1767464307607,0.01110802,90025.0,90021.0,0.01110851]
[1767464308979,0.01110802,90025.0,90020.0,0.05554278]
[1767464309930,0.01110802,90025.0,90021.0,0.01110851]
[1767464314591,0.01110814,90024.0,90021.0,0.01110851]
[1767464316277,0.01110802,90025.0,90021.0,0.01110851]
[1767464316447,0.01110802,90025.0,90022.0,0.01110839]
[1767464318245,0.01110802,90025.0,90021.0,0.01110851]
[1767464318381,0.01110814,90024.0,90021.0,0.01110851]
[1767464318937,0.01110802,90025.0,90021.0,0.06665096]
[1767464320127,0.0666493,90024.0,90019.0,0.06665206]
[1767464320302,0.01110814,90024.0,90020.0,0.01110864]
[1767464320502,0.01110802,90025.0,90021.0,0.0666511]
[1767464321464,0.0111079,90026.0,90025.0,0.000999]
[1767464321665,0.02151846,90026.0,90025.0,0.000999]
[1767464321860,0.02151846,90026.0,90023.0,0.01110827]
[1767464322055,0.01041056,90025.0,90023.0,0.01110827]
[1767464322216,0.0111079,90026.0,90023.0,0.01110827]
[1767464322415,0.01041055,90025.0,90023.0,0.01110827]
[1767464322770,0.0111079,90026.0,90023.0,0.01110827]
[1767464323537,0.01041054,90025.0,90023.0,0.01110827]
[1767464323782,0.0111079,90026.0,90025.0,0.000999]
[1767464323977,0.02151845,90026.0,90023.0,0.01110827]
[1767464324198,0.01041055,90025.0,90023.0,0.01110827]
[1767464324397,0.01110777,90027.0,90025.0,0.009001]
[1767464324523,0.01041055,90026.0,90025.0,0.009001]
[1767464324940,0.01041055,90026.0,90024.0,0.01110814]
[1767464325143,0.00941155,90025.0,90024.0,0.01110814]
[1767464325788,0.00041055,90025.0,90024.0,0.01101663]
[1767464326189,0.01110753,90029.0,90025.0,0.06664814]
[1767464326767,0.01110753,90029.0,90026.0,0.0111079]
[1767464328392,0.010999,90026.0,90025.0,0.01110802]
[1767464328593,0.010999,90026.0,90024.0,0.01101663]
[1767464328594,0.0211079,90026.0,90023.0,0.01110827]
[1767464328797,0.0211079,90026.0,90022.0,0.01110839]
[1767464331863,0.0211079,90026.0,90023.0,0.01110827]
[1767464332447,0.01110777,90027.0,90024.0,0.01110814]
[1767464332653,0.06664646,90028.0,90024.0,0.01110814]
[1767464333069,0.01110777,90027.0,90024.0,0.01110814]
[1767464333825,0.01110777,90027.0,90023.0,0.01110827]
[1767464334156,0.0111079,90026.0,90023.0,0.01110827]
[1767464334454,0.0111079,90026.0,90023.0,0.01101944]
[1767464335227,0.06664759,90026.0,90022.0,0.01110839]
[1767464335428,0.010999,90023.0,90021.0,0.01110851]
[1767464335931,0.01,90023.0,90021.0,0.01110851]
[1767464336329,0.01110814,90024.0,90021.0,0.01110851]
[1767464336925,0.01110802,90025.0,90021.0,0.01110851]
[1767464337898,0.01110802,90025.0,90021.0,0.06665074]
[1767464338721,0.01110802,90025.0,90021.0,0.01110851]
[1767464338917,0.010999,90021.0,90017.0,0.05554467]
[1767464339139,0.010999,90021.0,90020.0,0.05554321]
[1767464339341,0.01,90021.0,90019.0,0.05554347]
[1767464339522,0.01110827,90023.0,90019.0,0.06665223]
[1767464339726,0.01110827,90023.0,90020.0,0.01110864]
[1767464339947,0.01110814,90024.0,90020.0,0.01110864]
[1767464342446,0.01110814,90024.0,90021.0,0.0666511]
[1767464342681,0.01110814,90024.0,90021.0,0.06660719]
[1767464343686,0.01110814,90024.0,90021.0,0.05827247]
[1767464343843,0.01110802,90025.0,90021.0,0.05827247]
[1767464346065,0.06664852,90025.0,90021.0,0.0110646]
[1767464346406,0.01110814,90024.0,90021.0,0.0110646]
[1767464349303,0.01110839,90022.0,90018.0,0.06743125]
[1767464349503,0.010999,90021.0,90018.0,0.06743125]
[1767464349936,0.01110827,90023.0,90019.0,0.01110876]
[1767464350899,0.01110814,90024.0,90020.0,0.01110864]
[1767464351317,0.01110827,90023.0,90020.0,0.01110864]
[1767464351475,0.01110827,90023.0,90019.0,0.01110876]
[1767464352108,0.01110827,90023.0,90020.0,0.01110864]
[1767464353792,0.01110814,90024.0,90020.0,0.01110864]
[1767464357356,0.01110814,90024.0,90020.0,0.01096421]
[1767464357854,0.01110827,90023.0,90020.0,0.01096421]
[1767464358214,0.01110827,90023.0,90019.0,0.01110876]
[1767464359374,0.01110827,90023.0,90020.0,0.01110864]
[1767464362361,0.01110814,90024.0,90020.0,0.01110864]
[1767464364164,0.06664636,90028.0,90023.0,0.01110827]
[1767464364333,0.01040883,90027.0,90024.0,0.000999]
[1767464364516,0.01040883,90026.0,90024.0,0.01210714]
[1767464364729,0.01110777,90027.0,90024.0,0.01110814]
[1767464364927,0.01040883,90026.0,90024.0,0.01110814]
[1767464365135,0.01110777,90027.0,90024.0,0.01110814]
[1767464365334,0.01040882,90026.0,90024.0,0.06664849]
[1767464365673,0.01110765,90028.0,90026.0,0.000999]
[1767464365821,0.01040882,90027.0,90024.0,0.01110814]
[1767464366018,0.01040882,90026.0,90024.0,0.01110814]
[1767464366225,0.01110765,90028.0,90024.0,0.01110814]
[1767464366443,0.01040882,90027.0,90024.0,0.01110814]
[1767464366658,0.01040882,90026.0,90024.0,0.01110814]
[1767464366879,0.01110765,90028.0,90024.0,0.01110814]
[1767464367042,0.01110765,90028.0,90025.0,0.01110802]
[1767464368173,0.07773543,90033.0,90027.0,0.01110777]
[1767464368463,0.01110728,90031.0,90027.0,0.01110777]
[1767464369019,0.01110728,90031.0,90027.0,0.01106386]
[1767464369623,0.01110728,90031.0,90028.0,0.01110765]
[1767464369856,0.03330716,90032.0,90028.0,0.01106375]
[1767464371384,0.03330716,90032.0,90029.0,0.01110753]
[1767464371539,0.0222,90032.0,90029.0,0.06664472]
[1767464374359,0.0222,90032.0,90031.0,0.05553642]
[1767464374581,0.0222,90032.0,90029.0,0.06664472]
[1767464374787,0.0222,90032.0,90030.0,0.0555366]
[1767464376668,0.0001492,90036.0,90033.0,0.06664198]
[1767464376790,0.0001492,90036.0,90033.0,0.11174197]
[1767464376987,0.0001492,90036.0,90033.0,0.06664198]
[1767464377441,0.01110629,90039.0,90036.0,0.04509999]
[1767464377650,0.01110629,90039.0,90034.0,0.01110691]
[1767464377909,0.01,90036.0,90034.0,0.01110691]
[1767464378853,0.01110654,90037.0,90034.0,0.01110691]
[1767464379426,0.01110654,90037.0,90033.0,0.01110703]
[1767464380199,0.05985059,90037.0,90032.0,0.01664278]
[1767464380552,0.01110666,90036.0,90033.0,0.01110703]
[1767464380910,0.01110666,90036.0,90033.0,0.05620702]
[1767464382713,0.01103751,90037.0,90033.0,0.11174176]
[1767464383049,0.01103751,90037.0,90034.0,0.04509999]
[1767464383360,0.06657063,90037.0,90034.0,0.03509999]
[1767464383678,0.01110703,90033.0,90027.0,0.05553847]
[1767464383900,0.01110703,90033.0,90030.0,0.0111074]
[1767464384054,0.01110703,90033.0,90029.0,0.01110753]
[1767464384257,0.06664205,90034.0,90030.0,0.0111074]
[1767464384581,0.01110703,90033.0,90030.0,0.0111074]
[1767464384968,0.06664205,90034.0,90030.0,0.0111074]
[1767464385172,0.0666406,90036.0,90031.0,0.01110728]
[1767464385386,0.01110691,90034.0,90031.0,0.01110728]
[1767464385625,0.01110679,90035.0,90031.0,0.01110728]
[1767464386181,0.01110679,90035.0,90032.0,0.01110716]
[1767464386378,0.01110679,90035.0,90031.0,0.01110728]
[1767464386578,0.01110666,90036.0,90033.0,0.01110703]
[1767464387144,0.01010766,90036.0,90033.0,0.01110703]
[1767464387613,0.01103751,90037.0,90033.0,0.01110703]
[1767464393176,0.01110642,90038.0,90034.0,0.01110691]
[1767464393335,0.01110642,90038.0,90034.0,0.0562069]
[1767464393876,0.05553189,90039.0,90035.0,0.05620678]
[1767464394053,0.06663818,90039.0,90035.0,0.05620678]
[1767464395469,0.01110642,90038.0,90035.0,0.05620678]
[1767464397088,0.01110642,90038.0,90035.0,0.04509999]
[1767464397659,0.01110642,90038.0,90035.0,0.03687698]
[1767464397858,0.06663902,90038.0,90035.0,0.03687698]
[1767464399054,0.05553324,90037.0,90035.0,0.03587798]
[1767464399462,0.06663902,90038.0,90035.0,0.03587798]
[1767464400990,0.0555331,90037.0,90035.0,0.02477033]
[1767464401187,0.01110654,90037.0,90033.0,0.03631226]
[1767464401703,0.01110654,90037.0,90034.0,0.01110691]
[1767464403236,0.01110654,90037.0,90033.0,0.06014636]
[1767464404961,0.06664,90036.0,90033.0,0.04903933]
[1767464405761,0.01110666,90036.0,90033.0,0.04903933]
[1767464406898,0.01110666,90036.0,90033.0,0.06014636]
[1767464407249,0.01110666,90036.0,90033.0,0.06010245]
[1767464407927,0.01110654,90037.0,90036.0,0.000999]
[1767464408379,0.01110654,90037.0,90034.0,0.06014624]
[1767464410748,0.06663902,90038.0,90034.0,0.06014624]
[1767464410926,0.01110642,90038.0,90034.0,0.11568027]
[1767464411274,0.01110642,90038.0,90034.0,0.09924018]
[1767464411673,0.01110642,90038.0,90034.0,0.04370615]
[1767464413542,0.01110642,90038.0,90035.0,0.01110679]
[1767464413906,0.01110629,90039.0,90035.0,0.01110679]
[1767464414530,0.01110629,90039.0,90035.0,0.01106288]
[1767464414708,0.06663814,90039.0,90035.0,0.01106288]
[1767464415323,0.01110642,90038.0,90035.0,0.01106288]
[1767464419888,0.01110642,90038.0,90034.0,0.01110691]
[1767464420120,0.01110642,90038.0,90034.0,0.06664112]
[1767464420257,0.01110642,90038.0,90035.0,0.01110679]
[1767464422202,0.01110642,90038.0,90035.0,0.01106288]
[1767464422939,0.01097838,90038.0,90035.0,0.01106288]
[1767464424349,0.01097838,90038.0,90034.0,0.01110691]
[1767464424643,0.01097838,90038.0,90034.0,0.06000185]
[1767464426150,0.01110654,90037.0,90034.0,0.06000185]
[1767464426386,0.01110654,90037.0,90034.0,0.01096252]
[1767464426542,0.016484,90036.0,90033.0,0.0611204]
[1767464426739,0.01110654,90037.0,90033.0,0.0611204]
[1767464426912,0.01097838,90038.0,90034.0,0.06664101]
[1767464427785,0.01110654,90037.0,90034.0,0.01110691]
[1767464430304,0.01110654,90037.0,90034.0,0.05797526]
[1767464430671,0.01110654,90037.0,90034.0,0.05783087]
[1767464431776,0.01097838,90038.0,90037.0,0.000999]
[1767464431960,0.01097838,90038.0,90035.0,0.01110679]
[1767464433400,0.01097838,90038.0,90035.0,0.05851536]
[1767464433610,0.06663814,90039.0,90035.0,0.05851536]
[1767464437909,0.06663814,90039.0,90035.0,0.05837099]
[1767464438419,0.06663814,90039.0,90035.0,0.05832708]
[1767464439917,0.05553301,90037.0,90035.0,0.04740857]
[1767464440071,0.06663888,90038.0,90035.0,0.04726457]
[1767464441743,0.01110642,90038.0,90035.0,0.04726457]
[1767464443736,0.01110617,90040.0,90038.0,0.000999]
[1767464443937,0.01287242,90316.0,90043.0,0.0111058]
[1767464443938,0.044544,90058.0,90043.0,0.0111058]
[1767464444148,0.01110531,90047.0,90043.0,0.0110619]
[1767464445383,0.01110531,90047.0,90043.0,0.01091752]
[1767464445751,0.03330506,90049.0,90045.0,0.01110555]
[1767464445952,0.03330506,90049.0,90045.0,0.01087037]
[1767464446350,0.01110518,90048.0,90044.0,0.01110568]
[1767464446877,0.03330506,90049.0,90045.0,0.01110555]
[1767464447470,0.03330506,90049.0,90046.0,0.01110543]
[1767464447683,0.0222,90049.0,90046.0,0.01106153]
[1767464448045,0.021201,90049.0,90046.0,0.06658811]
[1767464448243,0.01110469,90052.0,90049.0,1e-08]
[1767464449683,0.09993992,90053.0,90049.0,1e-08]
[1767464449843,0.01110469,90052.0,90049.0,1e-08]
[1767464456523,0.09993992,90053.0,90049.0,0.06663028]
[1767464456729,0.09993992,90053.0,90049.0,0.06648592]
[1767464456929,0.01110469,90052.0,90048.0,0.01110518]
[1767464457128,0.01110481,90051.0,90048.0,0.01110518]
[1767464457299,0.01110481,90051.0,90047.0,0.01110531]
[1767464457495,0.01110494,90050.0,90047.0,0.01110531]
[1767464459273,0.01110481,90051.0,90050.0,0.000999]
[1767464459470,0.01110481,90051.0,90048.0,0.01110518]
[1767464460244,0.01110457,90053.0,90051.0,0.000999]
[1767464460453,0.01161247,90054.0,90051.0,0.000999]
[1767464460789,0.01161247,90054.0,90050.0,0.01110494]
[1767464461372,0.01161247,90054.0,90050.0,0.01096059]
[1767464464974,0.00050803,90054.0,90051.0,0.01110481]
[1767464465182,0.00050803,90054.0,90051.0,0.06662853]
[1767464465389,0.01161247,90054.0,90051.0,0.01110481]
[1767464466575,0.00050803,90054.0,90051.0,0.01110481]
[1767464467916,0.00050803,90054.0,90051.0,0.06662845]
[1767464469325,0.00050803,90054.0,90051.0,0.06648409]
[1767464474122,0.00851223,90056.0,90052.0,0.06662779]
[1767464474350,0.00857994,90056.0,90052.0,0.06662779]
[1767464479451,0.00857994,90056.0,90052.0,0.01110469]
[1767464480942,6.771e-05,90056.0,90052.0,0.06662781]
[1767464481217,6.771e-05,90056.0,90053.0,0.01110457]
[1767464481793,6.771e-05,90056.0,90053.0,0.06662707]
[1767464482003,6.771e-05,90056.0,90053.0,0.06648275]
[1767464482652,0.01110333,90063.0,90056.0,0.0111042]
[1767464482825,0.01110333,90063.0,90059.0,0.01110383]
[1767464483089,0.01110346,90062.0,90058.0,0.06662329]
[1767464483210,0.01110346,90062.0,90058.0,0.01110395]
[1767464483416,0.01110358,90061.0,90057.0,0.01110407]
[1767464483615,0.01110358,90061.0,90057.0,0.066624]
[1767464483957,0.01110358,90061.0,90057.0,0.01110407]
[1767464484737,0.01110358,90061.0,90057.0,0.06662396]
[1767464485590,0.0666212,90062.0,90058.0,0.01110395]
[1767464485591,0.01110346,90062.0,90058.0,0.01110395]
[1767464489617,0.06662042,90063.0,90059.0,0.01110383]
[1767464489777,0.06662042,90063.0,90059.0,0.01105993]
[1767464490180,0.01110333,90063.0,90060.0,0.0111037]
[1767464491282,0.0888182,90066.0,90061.0,0.01110358]
[1767464491470,0.01110309,90065.0,90061.0,0.01110358]
[1767464492522,0.01110309,90065.0,90061.0,0.01105968]
[1767464493601,0.01110309,90065.0,90061.0,0.06657708]
[1767464494306,0.01110272,90068.0,90064.0,0.01110321]
[1767464494893,0.01110284,90067.0,90064.0,0.01110321]
[1767464497681,0.01110284,90067.0,90064.0,0.01105744]
[1767464498140,0.01110284,90067.0,90063.0,0.01110333]
[1767464499660,0.06463574,90068.0,90064.0,0.04852126]
[1767464499823,0.01110284,90067.0,90063.0,0.01110333]
[1767464501264,0.01110296,90066.0,90063.0,0.01110333]
[1767464505667,0.01110296,90066.0,90062.0,0.01110346]
[1767464506061,0.01110309,90065.0,90062.0,0.01110346]
[1767464507618,0.01110333,90063.0,90059.0,0.04852126]
[1767464507771,0.01110333,90063.0,90059.0,0.06662257]
[1767464507979,0.06661935,90064.0,90059.0,0.06557524]
[1767464508197,0.01110321,90064.0,90061.0,0.01110358]
[1767464508446,0.01110309,90065.0,90061.0,0.01110358]
[1767464510010,0.01110309,90065.0,90061.0,0.01005626]
[1767464511263,0.01110309,90065.0,90061.0,0.00740628]
[1767464511458,0.01110309,90065.0,90061.0,0.0047563]
[1767464512169,0.01110296,90066.0,90062.0,0.00759324]
[1767464512821,0.01110321,90064.0,90057.0,0.06662408]
[1767464513010,0.01110383,90059.0,90056.0,0.04852126]
[1767464513211,0.06662195,90061.0,90059.0,0.000999]
[1767464513520,0.01110358,90061.0,90059.0,0.000999]
[1767464513674,0.01110358,90061.0,90056.0,0.06662462]
[1767464514288,0.01110346,90062.0,90058.0,0.01110395]
[1767464514653,0.01110358,90061.0,90057.0,0.01110407]
[1767464514852,0.0111037,90060.0,90056.0,0.0111042]
[1767464515051,0.0111037,90060.0,90057.0,0.01110407]
[1767464515468,0.01110358,90061.0,90057.0,0.01110407]
[1767464516040,0.0101047,90060.0,90056.0,0.0111042]
[1767464516440,0.0101047,90060.0,90057.0,0.01110407]
[1767464516642,0.06662224,90060.0,90056.0,0.0111042]
[1767464516804,0.0111037,90060.0,90056.0,0.0111042]
[1767464517590,0.01110383,90059.0,90055.0,0.06662545]
[1767464517773,0.000999,90056.0,90055.0,0.01110432]
[1767464517972,0.01110383,90059.0,90055.0,0.01110432]
[1767464518198,0.01110383,90059.0,90056.0,0.0111042]
[1767464518404,0.01110383,90059.0,90055.0,0.01110432]
[1767464518606,0.01110383,90059.0,90056.0,0.0111042]
[1767464519010,0.0111037,90060.0,90056.0,0.06662512]
[1767464519507,0.0111037,90060.0,90056.0,0.06662518]
[1767464519720,0.0111037,90060.0,90056.0,0.0666252]
[1767464520101,0.01110358,90061.0,90057.0,0.01110407]
[1767464520316,0.0111037,90060.0,90056.0,0.0111042]
[1767464520460,0.000999,90057.0,90056.0,0.0111042]
[1767464520660,0.0111037,90060.0,90057.0,0.01110407]
[1767464521643,0.0111037,90060.0,90056.0,0.06662518]
[1767464521797,0.01110358,90061.0,90057.0,0.01110407]